Workbook

Sheet Cálculo Viatico Extranjero
E2: CONTRALORIA GENERAL DE LA REPÚBLICA
C6: CALCULADORA VIÁTICO INTERNACIONAL
B8: SERVICIO PÚBLICO: | G8: AÑO | H8: 2016 | K8: ESCALA REMUNERACION | N8: EUS
B9: MUNICIPALIDAD:
B10: FUNCIONARIO: | G10: PERÍODO | K10: OBSERVACIONES
G11: DESDE
G12: HASTA
B13: GRADO: | H13: =H12-H11 -> 0
B14: VIÁTICO BASE US$ | C14: =IF(ISERROR(VLOOKUP(CONCATENATE($N$8,$C$13),Mantenedor!$J$2:$M$107,4,0)),"",VLOOKUP(CONCATENATE($N$8,$C$13),Mantenedor!$J$2:$M$107,4,0)) -> 
B17: INGRESAR PAÍS: | C17: COSTO (%) | D17: INCREMENTO | E17: N° DÍAS (100%): | F17: VALOR DIARIO | G17: VIÁTICO | H17: N° DÍAS (60%): | I17: VALOR DIARIO | J17: VIÁTICO | K17: N° DÍAS (40%): | L17: VALOR DIARIO | M17: VIÁTICO
A18: 1 | C18: =IF(ISERROR(VLOOKUP(CONCATENATE($H$8,$B18),Mantenedor!$D:$H,4,0)),"",VLOOKUP(CONCATENATE($H$8,$B18),Mantenedor!$D:$H,4,0)) ->  | D18: =IF(OR($C$14="",C18=""),"",$C$14*C18/100) ->  | F18: =IF(OR(D18="",$C$14=""),"",D18+$C$14) ->  | G18: =IFERROR(ROUND(F18*E18,2),"") ->  | I18: =IFERROR(+$F18*60/100,"") ->  | J18: =IFERROR(ROUND(I18*H18,2),"") ->  | L18: =IFERROR(+$F18*40/100,"") ->  | M18: =IFERROR(ROUND(L18*K18,2),"") ->  | N18: =SUM(E18,H18,K18) -> 0
A19: 2 | C19: =IF(ISERROR(VLOOKUP(CONCATENATE($H$8,$B19),Mantenedor!$D:$H,4,0)),"",VLOOKUP(CONCATENATE($H$8,$B19),Mantenedor!$D:$H,4,0)) ->  | D19: =IF(OR($C$14="",C19=""),"",$C$14*C19/100) ->  | N19: 0
A20: 3 | C20: =IF(ISERROR(VLOOKUP(CONCATENATE($H$8,$B20),Mantenedor!$D:$H,4,0)),"",VLOOKUP(CONCATENATE($H$8,$B20),Mantenedor!$D:$H,4,0)) ->  | N20: 0
A21: 4 | C21: =IF(ISERROR(VLOOKUP(CONCATENATE($H$8,$B21),Mantenedor!$D:$H,4,0)),"",VLOOKUP(CONCATENATE($H$8,$B21),Mantenedor!$D:$H,4,0)) ->  | N21: 0
A22: 5 | C22: =IF(ISERROR(VLOOKUP(CONCATENATE($H$8,$B22),Mantenedor!$D:$H,4,0)),"",VLOOKUP(CONCATENATE($H$8,$B22),Mantenedor!$D:$H,4,0)) ->  | N22: 0
A23: 6 | C23: =IF(ISERROR(VLOOKUP(CONCATENATE($H$8,$B23),Mantenedor!$D:$H,4,0)),"",VLOOKUP(CONCATENATE($H$8,$B23),Mantenedor!$D:$H,4,0)) ->  | N23: 0
N24: =SUM(N18:N23) -> 0
E25: TOTAL DÍAS 100% | G25: =SUM(E18:E23) -> 0 | J25: VIÁTICO 100% | K25: =SUM(G18:G23) -> 0.00
E26: TOTAL DÍAS 60% | G26: =SUM(H18:H23) -> 0 | J26: VIÁTICO 60% | K26: =SUM(J18:J23) -> 0.00
E27: TOTAL DÍAS 40% | G27: =SUM(K18:K23) -> 0 | J27: VIÁTICO 40% | K27: =SUM(M18:M23) -> 0.00
H29: TOTAL VIÁTICO (US$) | K29: =SUM(K25:K27) -> 0.00
C31: VALOR DÓLAR OBSERVADO CONFORME A LA FECHA DE AUTORIZACIÓN | H31: TOTAL VIÁTICO ($) | K31: =SUM(K29*G32) -> 0
K33: Última Actualización 05/02/2016
B35: Nota 1: Decreto Hacienda N°1, de 1991, Homologa grados de EUS a otras Escalas de la Administración del Estado (Instrucciones Ley de Presupuesto)
B36: Nota 2: Decretos Hacienda N°135, de 2011, N°137, de 2012 y N°141, de 2013, Establece coeficientes de costo de vida por país (se fija anualmente)
B37: Nota 3: No se considera lo indicado en el Decreto Hacienda N°1, de 1991, Artículo 1, Inciso final.
B38: Nota 4: En observaciones anotar antecedentes de la comisión como n°decreto o resolución, condiciones del viaje, etc.

Sheet Mantenedor (hidden)
B1: PORCENTAJE | E1: DESTINO | F1: FACTOR | G1: COSTO | H1: VIATICO 100 | L1: GRADOS | N1: ESCALA
B2: 100% | C2: 2012 | D2: 2012Afganistan, Kabul | E2: Afganistan, Kabul | F2: 0.93597561 | G2: =(F2*$B$7) -> 563.7006709 | H2: =(G2+100)/100 -> 6.63700671 | J2: EUSA | K2: EUS | L2: A | M2: 100 | N2: EUS
B3: 60% | D3: 2012Albania, Tirana | E3: Albania, Tirana | F3: 0.823780488 | G3: 496.1300367 | H3: 5.96130037 | J3: EUSB | K3: EUS | L3: B | M3: 100 | N3: EFS
B4: 40% | D4: 2012Alemania, Berlín | E4: Alemania, Berlín | F4: 1.017682927 | G4: 612.9097196 | H4: 7.12909720 | J4: EUSC | K4: EUS | L4: C | M4: 100 | N4: MUN
D5: 2012Alemania, Bonn | E5: Alemania, Bonn | F5: 0.970731707 | G5: 584.6328779 | H5: 6.84632878 | J5: EUS1A | K5: EUS | L5: 1A | M5: 70 | N5: CGR
A6: AÑO | B6: CONSTANTE | D6: 2012Alemania, Hamburgo | E6: Alemania, Hamburgo | F6: 1.002439024 | G6: 603.7289266 | H6: 7.03728927 | J6: EUS1B | K6: EUS | L6: 1B | M6: 70
A7: 2012 | B7: 602.26 | D7: 2012Angola, Luanda | E7: Angola, Luanda | F7: 1.098170732 | G7: 661.3843051 | H7: 7.61384305 | J7: EUS1C | K7: EUS | L7: 1C | M7: 70
A8: 2013 | B8: 615.22 | D8: 2012Antigua Y Barbuda, St. John'S | E8: Antigua Y Barbuda, St. John'S | F8: 0.897560976 | G8: 540.5650734 | H8: 6.40565073 | J8: EUS2 | K8: EUS | L8: 2 | M8: 60
A9: 2014 | B9: 625.46 | D9: 2012Antillas Holandesas | E9: Antillas Holandesas | F9: 0.897560976 | G9: 540.5650734 | H9: 6.40565073 | J9: EUS3 | K9: EUS | L9: 3 | M9: 60
A10: 2015 | B10: 639.49 | D10: 2012Arabia Saudita, Riyadh | E10: Arabia Saudita, Riyadh | F10: 0.884146341 | G10: 532.4859753 | H10: 6.32485975 | J10: EUS4 | K10: EUS | L10: 4 | M10: 60
A11: 2016 | B11: 639.04 | D11: 2012Argelia, Argel | E11: Argelia, Argel | F11: 0.874390244 | G11: 526.6102684 | H11: 6.26610268 | J11: EUS5 | K11: EUS | L11: 5 | M11: 60
D12: 2012Argentina, Buenos Aires | E12: Argentina, Buenos Aires | F12: 0.818292683 | G12: 492.8249513 | H12: 5.92824951 | J12: EUS6 | K12: EUS | L12: 6 | M12: 50
D13: 2012Armenia, Erevan | E13: Armenia, Erevan | F13: 0.873780488 | G13: 526.2430367 | H13: 6.26243037 | J13: EUS7 | K13: EUS | L13: 7 | M13: 50
D14: 2012Australia, Canberra | E14: Australia, Canberra | F14: 1.110365854 | G14: 668.7289392 | H14: 7.68728939 | J14: EUS8 | K14: EUS | L14: 8 | M14: 50
D15: 2012Austria, Viena | E15: Austria, Viena | F15: 1.015853659 | G15: 611.8080247 | H15: 7.11808025 | J15: EUS9 | K15: EUS | L15: 9 | M15: 50
D16: 2012Azerbaijan, Baku | E16: Azerbaijan, Baku | F16: 0.975 | G16: 587.2035 | H16: 6.87203500 | J16: EUS10 | K16: EUS | L16: 10 | M16: 50
D17: 2012Bahamas, Nassau | E17: Bahamas, Nassau | F17: 0.988414634 | G17: 595.2825975 | H17: 6.95282597 | J17: EUS11 | K17: EUS | L17: 11 | M17: 50
D18: 2012Bahrein, Manama | E18: Bahrein, Manama | F18: 0.965853659 | G18: 581.6950247 | H18: 6.81695025 | J18: EUS12 | K18: EUS | L18: 12 | M18: 50
D19: 2012Bangladesh, Dacca | E19: Bangladesh, Dacca | F19: 0.832926829 | G19: 501.638512 | H19: 6.01638512 | J19: EUS13 | K19: EUS | L19: 13 | M19: 50
D20: 2012Barbados, Bridgetown | E20: Barbados, Bridgetown | F20: 0.911585366 | G20: 549.0114025 | H20: 6.49011403 | J20: EUS14 | K20: EUS | L20: 14 | M20: 50
D21: 2012Belarús, Minsk | E21: Belarús, Minsk | F21: 0.812195122 | G21: 489.1526342 | H21: 5.89152634 | J21: EUS15 | K21: EUS | L21: 15 | M21: 50
D22: 2012Bélgica, Bruselas | E22: Bélgica, Bruselas | F22: 1.014634146 | G22: 611.0735608 | H22: 7.11073561 | J22: EUS16 | K22: EUS | L22: 16 | M22: 40
D23: 2012Belice, Belmopan | E23: Belice, Belmopan | F23: 0.77804878 | G23: 468.5876582 | H23: 5.68587658 | J23: EUS17 | K23: EUS | L23: 17 | M23: 40
D24: 2012Benin, Porto Novo | E24: Benin, Porto Novo | F24: 0.897560976 | G24: 540.5650734 | H24: 6.40565073 | J24: EUS18 | K24: EUS | L24: 18 | M24: 40
D25: 2012Bhután, Timbu | E25: Bhután, Timbu | F25: 0.881097561 | G25: 530.6498171 | H25: 6.30649817 | J25: EUS19 | K25: EUS | L25: 19 | M25: 40
D26: 2012Bolivia, La Paz | E26: Bolivia, La Paz | F26: 0.800609756 | G26: 482.1752316 | H26: 5.82175232 | J26: EUS20 | K26: EUS | L26: 20 | M26: 40
D27: 2012Bosnia-Hercegovina, Zarajevo | E27: Bosnia-Hercegovina, Zarajevo | F27: 0.842682927 | G27: 507.5142196 | H27: 6.07514220 | J27: EUS21 | K27: EUS | L27: 21 | M27: 40
D28: 2012Botswana, Gaberones | E28: Botswana, Gaberones | F28: 0.868292683 | G28: 522.9379513 | H28: 6.22937951 | J28: EUS22 | K28: EUS | L28: 22 | M28: 40
D29: 2012Brasil, Brasilia | E29: Brasil, Brasilia | F29: 1.171341463 | G29: 705.4521095 | H29: 8.05452110 | J29: EUS23 | K29: EUS | L29: 23 | M29: 40
D30: 2012Brunei, Bandar Seri Begawan | E30: Brunei, Bandar Seri Begawan | F30: 1.114634146 | G30: 671.2995608 | H30: 7.71299561 | J30: EUS24 | K30: EUS | L30: 24 | M30: 35
D31: 2012Bulgaria, Sofia | E31: Bulgaria, Sofia | F31: 0.821341463 | G31: 494.6611095 | H31: 5.94661110 | J31: EUS25 | K31: EUS | L31: 25 | M31: 35
D32: 2012Burkina Fasso, Wagadugu | E32: Burkina Fasso, Wagadugu | F32: 0.959146341 | G32: 577.6554753 | H32: 6.77655475 | J32: EUS26 | K32: EUS | L32: 26 | M32: 35
D33: 2012Burundi, Bujumbura | E33: Burundi, Bujumbura | F33: 0.904878049 | G33: 544.9718538 | H33: 6.44971854 | J33: EUS27 | K33: EUS | L33: 27 | M33: 35
D34: 2012Cabo Verde, Praia | E34: Cabo Verde, Praia | F34: 0.957317073 | G34: =(F34*$B$7) -> 576.5537804 | H34: 6.76553780 | J34: EUS28 | K34: EUS | L34: 28 | M34: 35
D35: 2012Camboya, Pnom Penh | E35: Camboya, Pnom Penh | F35: 0.751219512 | G35: 452.4294633 | H35: 5.52429463 | J35: EUS29 | K35: EUS | L35: 29 | M35: 35
D36: 2012Camerún, Yacundee | E36: Camerún, Yacundee | F36: 0.981707317 | G36: 591.2430487 | H36: 6.91243049 | J36: EUS30 | K36: EUS | L36: 30 | M36: 35
D37: 2012Canadá, Otawa | E37: Canadá, Otawa | F37: 1.030487805 | G37: 620.6215854 | H37: 7.20621585 | J37: EUS31 | K37: EUS | L37: 31 | M37: 35
D38: 2012Canadá, Toronto | E38: Canadá, Toronto | F38: 1.101829268 | G38: 663.5876949 | H38: 7.63587695 | J38: CGRF/G | K38: CGR | L38: F/G | M38: 100
D39: 2012Canadá, Montreal | E39: Canadá, Montreal | F39: 1.014634146 | G39: 611.0735608 | H39: 7.11073561 | J39: CGR1B | K39: CGR | L39: 1B | M39: 70
D40: 2012Chad, N'Djamena | E40: Chad, N'Djamena | F40: 0.98597561 | G40: 593.8136709 | H40: 6.93813671 | J40: CGR2 | K40: CGR | L40: 2 | M40: 60
D41: 2012China, Republica Popular, Beijing | E41: China, Republica Popular, Beijing | F41: 0.951219512 | G41: 572.8814633 | H41: 6.72881463 | J41: CGR3 | K41: CGR | L41: 3 | M41: 60
D42: 2012China, Republica Popular, Hong Kong | E42: China, Republica Popular, Hong Kong | F42: 1.146341463 | G42: 690.3956095 | H42: 7.90395610 | J42: CGR4 | K42: CGR | L42: 4 | M42: 60
D43: 2012Chipre, Nicosia | E43: Chipre, Nicosia | F43: 0.837804878 | G43: 504.5763658 | H43: 6.04576366 | J43: CGR5 | K43: CGR | L43: 5 | M43: 50
D44: 2012Colombia, Bogotá | E44: Colombia, Bogotá | F44: 0.93902439 | G44: 565.5368291 | H44: 6.65536829 | J44: CGR6 | K44: CGR | L44: 6 | M44: 50
D45: 2012Union Del Comores, Moroni | E45: Union Del Comores, Moroni | F45: 0.958536585 | G45: 577.2882437 | H45: 6.77288244 | J45: CGR7 | K45: CGR | L45: 7 | M45: 50
D46: 2012Congo, Brazzaville | E46: Congo, Brazzaville | F46: 1 | G46: 602.26 | H46: 7.02260000 | J46: CGR8 | K46: CGR | L46: 8 | M46: 50
D47: 2012Corea Del Sur, Seúl | E47: Corea Del Sur, Seúl | F47: 1.097560976 | G47: 661.0170734 | H47: 7.61017073 | J47: CGR9 | K47: CGR | L47: 9 | M47: 50
D48: 2012Corea Del Norte, Pyongyans | E48: Corea Del Norte, Pyongyans | F48: 0.943902439 | G48: 568.4746829 | H48: 6.68474683 | J48: CGR10 | K48: CGR | L48: 10 | M48: 50
D49: 2012Costa De Marfil, Avitjan | E49: Costa De Marfil, Avitjan | F49: 0.983536585 | G49: 592.3447437 | H49: 6.92344744 | J49: CGR11 | K49: CGR | L49: 11 | M49: 50
D50: 2012Costa Rica, San José | E50: Costa Rica, San José | F50: 0.815243902 | G50: 490.9887924 | H50: 5.90988792 | J50: CGR12 | K50: CGR | L50: 12 | M50: 50
D51: 2012Croacia, Zagreb | E51: Croacia, Zagreb | F51: 1.001829268 | G51: 603.3616949 | H51: 7.03361695 | J51: CGR13 | K51: CGR | L51: 13 | M51: 50
D52: 2012Cuba, La Habana | E52: Cuba, La Habana | F52: 0.891463415 | G52: 536.8927563 | H52: 6.36892756 | J52: CGR14 | K52: CGR | L52: 14 | M52: 50
D53: 2012Dinamarca, Copenhage | E53: Dinamarca, Copenhage | F53: 1.095121951 | G53: 659.5481462 | H53: 7.59548146 | J53: CGR15 | K53: CGR | L53: 15 | M53: 40
D54: 2012Djibuti, Djibuti | E54: Djibuti, Djibuti | F54: 0.923780488 | G54: 556.3560367 | H54: 6.56356037 | J54: CGR16 | K54: CGR | L54: 16 | M54: 40
D55: 2012Dominica, Roseau | E55: Dominica, Roseau | F55: 0.897560976 | G55: 540.5650734 | H55: 6.40565073 | J55: CGR17 | K55: CGR | L55: 17 | M55: 40
D56: 2012Ecuador, Quito | E56: Ecuador, Quito | F56: 0.77804878 | G56: 468.5876582 | H56: 5.68587658 | J56: CGR18 | K56: CGR | L56: 18 | M56: 40
D57: 2012EE.UU. El Paso | E57: EE.UU. El Paso | F57: 0.85304878 | G57: 513.7571582 | H57: 6.13757158 | J57: CGR19 | K57: CGR | L57: 19 | M57: 40
D58: 2012EE.UU. Miami | E58: EE.UU. Miami | F58: 0.894512195 | G58: 538.7289146 | H58: 6.38728915 | J58: CGR20 | K58: CGR | L58: 20 | M58: 40
D59: 2012EE.UU. Nueva York | E59: EE.UU. Nueva York | F59: 1 | G59: 602.26 | H59: 7.02260000 | J59: CGR21 | K59: CGR | L59: 21 | M59: 40
D60: 2012EE.UU. San Francisco | E60: EE.UU. San Francisco | F60: 0.934146341 | G60: 562.5989753 | H60: 6.62598975 | J60: CGR22 | K60: CGR | L60: 22 | M60: 40
D61: 2012EE.UU. Washington, DC | E61: EE.UU. Washington, DC | F61: 0.894512195 | G61: 538.7289146 | H61: 6.38728915 | J61: CGR23 | K61: CGR | L61: 23 | M61: 40
D62: 2012Egipto, El Cairo | E62: Egipto, El Cairo | F62: 0.837195122 | G62: 504.2091342 | H62: 6.04209134 | J62: MUN1 | K62: MUN | L62: 1 | M62: 60
D63: 2012El Salvador, San Salvador | E63: El Salvador, San Salvador | F63: 0.787195122 | G63: 474.0961342 | H63: 5.74096134 | J63: MUN2 | K63: MUN | L63: 2 | M63: 60
D64: 2012Emiratos Arabes Uni., Abu-Dhabi | E64: Emiratos Arabes Uni., Abu-Dhabi | F64: 1.03902439 | G64: 625.7628291 | H64: 7.25762829 | J64: MUN3 | K64: MUN | L64: 3 | M64: 60
D65: 2012Eritrea, Asmara | E65: Eritrea, Asmara | F65: 0.953658537 | G65: 574.3503905 | H65: 6.74350390 | J65: MUN4 | K65: MUN | L65: 4 | M65: 60
D66: 2012Eslovaquia, Bratislava | E66: Eslovaquia, Bratislava | F66: 0.970731707 | G66: =(F66*$B$7) -> 584.6328779 | H66: =(G66+100)/100 -> 6.84632878 | J66: MUN5 | K66: MUN | L66: 5 | M66: 60
D67: 2012Eslovenia, Ljubliana | E67: Eslovenia, Ljubliana | F67: 0.837804878 | G67: 504.5763658 | H67: 6.04576366 | J67: MUN6 | K67: MUN | L67: 6 | M67: 50
D68: 2012España, Madrid | E68: España, Madrid | F68: 0.973170732 | G68: 586.1018051 | H68: 6.86101805 | J68: MUN7 | K68: MUN | L68: 7 | M68: 50
D69: 2012Estonia, Tallin | E69: Estonia, Tallin | F69: 0.887804878 | G69: 534.6893658 | H69: 6.34689366 | J69: MUN8 | K69: MUN | L69: 8 | M69: 50
D70: 2012Etiopia, Addis Abeba | E70: Etiopia, Addis Abeba | F70: 0.863414634 | G70: 520.0000975 | H70: 6.20000097 | J70: MUN9 | K70: MUN | L70: 9 | M70: 50
D71: 2012Federacion De Rusia, Moscú | E71: Federacion De Rusia, Moscú | F71: 1.115853659 | G71: 672.0340247 | H71: 7.72034025 | J71: MUN10 | K71: MUN | L71: 10 | M71: 50
D72: 2012Fidji, Suva | E72: Fidji, Suva | F72: 0.881707317 | G72: 531.0170487 | H72: 6.31017049 | J72: MUN11 | K72: MUN | L72: 11 | M72: 50
D73: 2012Filipinas, Manila | E73: Filipinas, Manila | F73: 0.92195122 | G73: 555.2543418 | H73: 6.55254342 | J73: MUN12 | K73: MUN | L73: 12 | M73: 50
D74: 2012Finlandia, Helsinski | E74: Finlandia, Helsinski | F74: 1.038414634 | G74: 625.3955975 | H74: 7.25395597 | J74: MUN13 | K74: MUN | L74: 13 | M74: 50
D75: 2012Francia, París | E75: Francia, París | F75: 1.054268293 | G75: 634.9436221 | H75: 7.34943622 | J75: MUN14 | K75: MUN | L75: 14 | M75: 50
D76: 2012Gabon, Libreville | E76: Gabon, Libreville | F76: 1.000609756 | G76: 602.6272316 | H76: 7.02627232 | J76: MUN15 | K76: MUN | L76: 15 | M76: 50
D77: 2012Gambia, Banjul | E77: Gambia, Banjul | F77: 0.880487805 | G77: 530.2825854 | H77: 6.30282585 | J77: MUN16 | K77: MUN | L77: 16 | M77: 40
D78: 2012Georgia, Tiflis | E78: Georgia, Tiflis | F78: 0.902439024 | G78: 543.5029266 | H78: 6.43502927 | J78: MUN17 | K78: MUN | L78: 17 | M78: 40
D79: 2012Ghana, Accra | E79: Ghana, Accra | F79: 0.89695122 | G79: 540.1978418 | H79: 6.40197842 | J79: MUN18 | K79: MUN | L79: 18 | M79: 40
D80: 2012Grecia, Atenas | E80: Grecia, Atenas | F80: 0.935365854 | G80: 563.3334392 | H80: 6.63333439 | J80: MUN19 | K80: MUN | L80: 19 | M80: 40
D81: 2012Grenada, Saint George | E81: Grenada, Saint George | F81: 0.897560976 | G81: 540.5650734 | H81: 6.40565073 | J81: MUN20 | K81: MUN | L81: 20 | M81: 40
D82: 2012Guatemala, C. De Guatemala | E82: Guatemala, C. De Guatemala | F82: 0.835365854 | G82: 503.1074392 | H82: 6.03107439 | J82: EFSF/G | K82: EFS | L82: F/G | M82: 100
D83: 2012Guinea, Conakry | E83: Guinea, Conakry | F83: 0.882926829 | G83: 531.751512 | H83: 6.31751512 | J83: EFS1 | K83: EFS | L83: 1 | M83: 60
D84: 2012Guinea Ecuatorial, Mulabo | E84: Guinea Ecuatorial, Mulabo | F84: 0.96402439 | G84: 580.5933291 | H84: 6.80593329 | J84: EFS2 | K84: EFS | L84: 2 | M84: 60
D85: 2012Guinea Bissau, Bissau | E85: Guinea Bissau, Bissau | F85: 0.971341463 | G85: 585.0001095 | H85: 6.85000110 | J85: EFS3 | K85: EFS | L85: 3 | M85: 60
D86: 2012Guyana, George Town | E86: Guyana, George Town | F86: 0.85304878 | G86: 513.7571582 | H86: 6.13757158 | J86: EFS4 | K86: EFS | L86: 4 | M86: 60
D87: 2012Haiti, Puerto Príncipe | E87: Haiti, Puerto Príncipe | F87: 0.925609756 | G87: 557.4577316 | H87: 6.57457732 | J87: EFS5 | K87: EFS | L87: 5 | M87: 60
D88: 2012Honduras, Tegucigalpa | E88: Honduras, Tegucigalpa | F88: 0.815243902 | G88: 490.9887924 | H88: 5.90988792 | J88: EFS6 | K88: EFS | L88: 6 | M88: 50
D89: 2012Hungria, Budapest | E89: Hungria, Budapest | F89: 0.931097561 | G89: 560.7628171 | H89: 6.60762817 | J89: EFS7 | K89: EFS | L89: 7 | M89: 50
D90: 2012India, Nueva Delhi | E90: India, Nueva Delhi | F90: 0.862195122 | G90: 519.2656342 | H90: 6.19265634 | J90: EFS8 | K90: EFS | L90: 8 | M90: 50
D91: 2012Indonesia, Yakarta | E91: Indonesia, Yakarta | F91: 0.915243902 | G91: 551.2147924 | H91: 6.51214792 | J91: EFS9 | K91: EFS | L91: 9 | M91: 50
D92: 2012Iran, Teheran | E92: Iran, Teheran | F92: 0.887195122 | G92: 534.3221342 | H92: 6.34322134 | J92: EFS10 | K92: EFS | L92: 10 | M92: 50
D93: 2012Irak, Bagdag | E93: Irak, Bagdag | F93: 0.876219512 | G93: 527.7119633 | H93: 6.27711963 | J93: EFS11 | K93: EFS | L93: 11 | M93: 50
D94: 2012Irlanda, Dublin | E94: Irlanda, Dublin | F94: 0.972560976 | G94: 585.7345734 | H94: 6.85734573 | J94: EFS12 | K94: EFS | L94: 12 | M94: 50
D95: 2012Islandia, Reikiavik | E95: Islandia, Reikiavik | F95: 0.857317073 | G95: 516.3277804 | H95: 6.16327780 | J95: EFS13 | K95: EFS | L95: 13 | M95: 50
D96: 2012Islas Marshall, Majuro | E96: Islas Marshall, Majuro | F96: 0.990853659 | G96: 596.7515247 | H96: 6.96751525 | J96: EFS14 | K96: EFS | L96: 14 | M96: 50
D97: 2012Islas Salomon, Honiara | E97: Islas Salomon, Honiara | F97: 0.995731707 | G97: 599.6893779 | H97: 6.99689378 | J97: EFS15 | K97: EFS | L97: 15 | M97: 50
D98: 2012Israel, Tel Aviv | E98: Israel, Tel Aviv | F98: 0.956707317 | G98: =(F98*$B$7) -> 576.1865487 | H98: 6.76186549 | J98: EFS16 | K98: EFS | L98: 16 | M98: 40
D99: 2012Italia, Roma | E99: Italia, Roma | F99: 1.023780488 | G99: 616.5820367 | H99: 7.16582037 | J99: EFS17 | K99: EFS | L99: 17 | M99: 40
D100: 2012Jamaica, Kignston | E100: Jamaica, Kignston | F100: 0.881097561 | G100: 530.6498171 | H100: 6.30649817 | J100: EFS18 | K100: EFS | L100: 18 | M100: 40
D101: 2012Japon, Tokio | E101: Japon, Tokio | F101: 1.434146341 | G101: 863.7289753 | H101: 9.63728975 | J101: EFS19 | K101: EFS | L101: 19 | M101: 40
D102: 2012Jordania, Amman | E102: Jordania, Amman | F102: 0.867073171 | G102: 522.203488 | H102: 6.22203488 | J102: EFS20 | K102: EFS | L102: 20 | M102: 40
D103: 2012Kazakhstan, Alma Ata | E103: Kazakhstan, Alma Ata | F103: 0.966463415 | G103: 582.0622563 | H103: 6.82062256 | J103: EFS21 | K103: EFS | L103: 21 | M103: 40
D104: 2012Kenya, Nairobi | E104: Kenya, Nairobi | F104: 0.812804878 | G104: 489.5198658 | H104: 5.89519866 | J104: EFS22 | K104: EFS | L104: 22 | M104: 40
D105: 2012Kirguistan, Biskek | E105: Kirguistan, Biskek | F105: 0.87804878 | G105: 528.8136582 | H105: 6.28813658 | J105: EFS23 | K105: EFS | L105: 23 | M105: 40
D106: 2012Kiribati, Bairiki | E106: Kiribati, Bairiki | F106: 1.1 | G106: 662.486 | H106: 7.62486000 | J106: EFS24 | K106: EFS | L106: 24 | M106: 40
D107: 2012Kuwait, Al Kuwait | E107: Kuwait, Al Kuwait | F107: 0.887195122 | G107: 534.3221342 | H107: 6.34322134 | J107: EFS25 | K107: EFS | L107: 25 | M107: 40
D108: 2012Republica Popular Democratica De Laos, Vientiane | E108: Republica Popular Democratica De Laos, Vientiane | F108: 0.852439024 | G108: 513.3899266 | H108: 6.13389927
D109: 2012Lesotho, Maseru | E109: Lesotho, Maseru | F109: 0.88902439 | G109: 535.4238291 | H109: 6.35423829
D110: 2012Letonia, Riga | E110: Letonia, Riga | F110: 0.925609756 | G110: 557.4577316 | H110: 6.57457732
D111: 2012El Libano, Beirut | E111: El Libano, Beirut | F111: 0.914634146 | G111: 550.8475608 | H111: 6.50847561
D112: 2012Liberia, Monrovia | E112: Liberia, Monrovia | F112: 0.908536585 | G112: 547.1752437 | H112: 6.47175244
D113: 2012Libia, Tripoli | E113: Libia, Tripoli | F113: 0.821341463 | G113: 494.6611095 | H113: 5.94661110
D114: 2012Lituania, Vilna | E114: Lituania, Vilna | F114: 0.873170732 | G114: 525.8758051 | H114: 6.25875805
D115: 2012Luxemburgo | E115: Luxemburgo | F115: 1.048780488 | G115: 631.6385367 | H115: 7.31638537
D116: 2012Macedonia, Skopje | E116: Macedonia, Skopje | F116: 0.825 | G116: 496.8645 | H116: 5.96864500
D117: 2012Madagascar, Antananarivo | E117: Madagascar, Antananarivo | F117: 0.865853659 | G117: 521.4690247 | H117: 6.21469025
D118: 2012Malasia, Kuala Lumpur | E118: Malasia, Kuala Lumpur | F118: 0.867682927 | G118: 522.5707196 | H118: 6.22570720
D119: 2012Malawi, Lilongwe | E119: Malawi, Lilongwe | F119: 0.927439024 | G119: 558.5594266 | H119: 6.58559427
D120: 2012Maldivas, Male | E120: Maldivas, Male | F120: 0.859146341 | G120: 517.4294753 | H120: 6.17429475
D121: 2012Mali, Bamako | E121: Mali, Bamako | F121: 0.95 | G121: 572.147 | H121: 6.72147000
D122: 2012Malta, La Valetta | E122: Malta, La Valetta | F122: 0.936585366 | G122: 564.0679025 | H122: 6.64067903
D123: 2012Marruecos, Rabat | E123: Marruecos, Rabat | F123: 0.823780488 | G123: 496.1300367 | H123: 5.96130037
D124: 2012Mauricio, Port Louis | E124: Mauricio, Port Louis | F124: 0.827439024 | G124: 498.3334266 | H124: 5.98333427
D125: 2012Mauritania, Novakchott | E125: Mauritania, Novakchott | F125: 0.863414634 | G125: 520.0000975 | H125: 6.20000097
D126: 2012Mexico, Ciudad De México | E126: Mexico, Ciudad De México | F126: 0.898780488 | G126: 541.2995367 | H126: 6.41299537
D127: 2012Micronesia, Palikir | E127: Micronesia, Palikir | F127: 0.990853659 | G127: 596.7515247 | H127: 6.96751525
D128: 2012Moldavia, Chisinau | E128: Moldavia, Chisinau | F128: 0.866463415 | G128: 521.8362563 | H128: 6.21836256
D129: 2012Monaco, Mónaco Ville | E129: Monaco, Mónaco Ville | F129: 1.054268293 | G129: 634.9436221 | H129: 7.34943622
D130: 2012Mongolia, Ulan Bator | E130: Mongolia, Ulan Bator | F130: 0.864634146 | G130: =(F130*$B$7) -> 520.7345608 | H130: =(G130+100)/100 -> 6.20734561
D131: 2012Montenegro, Podgorica | E131: Montenegro, Podgorica | F131: 0.872560976 | G131: 525.5085734 | H131: 6.25508573
D132: 2012Montserrat, Plymouth | E132: Montserrat, Plymouth | F132: 0.897560976 | G132: 540.5650734 | H132: 6.40565073
D133: 2012Mozambique, Maputu | E133: Mozambique, Maputu | F133: 0.898780488 | G133: 541.2995367 | H133: 6.41299537
D134: 2012Myanmar, Rangún | E134: Myanmar, Rangún | F134: 0.916463415 | G134: 551.9492563 | H134: 6.51949256
D135: 2012Namibia, Windhoer | E135: Namibia, Windhoer | F135: 0.935365854 | G135: 563.3334392 | H135: 6.63333439
D136: 2012Nauru, Yaren | E136: Nauru, Yaren | F136: 0.990853659 | G136: 596.7515247 | H136: 6.96751525
D137: 2012Nepal, Katmandú | E137: Nepal, Katmandú | F137: 0.887804878 | G137: 534.6893658 | H137: 6.34689366
D138: 2012Nicaragua, Managua | E138: Nicaragua, Managua | F138: 0.777439024 | G138: 468.2204266 | H138: 5.68220427
D139: 2012Niger, Niamey | E139: Niger, Niamey | F139: 0.948170732 | G139: 571.0453051 | H139: 6.71045305
D140: 2012Nigeria, Lagos | E140: Nigeria, Lagos | F140: 0.990243902 | G140: 596.3842924 | H140: 6.96384292
D141: 2012Noruega, Oslo | E141: Noruega, Oslo | F141: 1.18597561 | G141: 714.2656709 | H141: 8.14265671
D142: 2012Nueva Zelandia, Wellington | E142: Nueva Zelandia, Wellington | F142: 0.804268293 | G142: 484.3786221 | H142: 5.84378622
D143: 2012Oman, Mascate | E143: Oman, Mascate | F143: 0.843902439 | G143: 508.2486829 | H143: 6.08248683
D144: 2012Paises Bajos, Amsterdam | E144: Paises Bajos, Amsterdam | F144: 0.975 | G144: 587.2035 | H144: 6.87203500
D145: 2012Pakistan, Islamabad | E145: Pakistan, Islamabad | F145: 0.831707317 | G145: 500.9040487 | H145: 6.00904049
D146: 2012Panamá, Ciudad De Panamá | E146: Panamá, Ciudad De Panamá | F146: 0.840853659 | G146: 506.4125247 | H146: 6.06412525
D147: 2012Papua Nueva Guinea, Port Noresby | E147: Papua Nueva Guinea, Port Noresby | F147: 1.128658537 | G147: 679.7458905 | H147: 7.79745890
D148: 2012Paraguay, Asunción | E148: Paraguay, Asunción | F148: 0.825609756 | G148: 497.2317316 | H148: 5.97231732
D149: 2012Peru, Lima | E149: Peru, Lima | F149: 0.870731707 | G149: 524.4068779 | H149: 6.24406878
D150: 2012Polonia, Varsovia | E150: Polonia, Varsovia | F150: 0.87195122 | G150: 525.1413418 | H150: 6.25141342
D151: 2012Portugal, Lisboa | E151: Portugal, Lisboa | F151: 0.93597561 | G151: 563.7006709 | H151: 6.63700671
D152: 2012Qatar, Doha | E152: Qatar, Doha | F152: 0.973780488 | G152: 586.4690367 | H152: 6.86469037
D153: 2012Reino Unido, Londres | E153: Reino Unido, Londres | F153: 1.073170732 | G153: 646.3278051 | H153: 7.46327805
D154: 2012Republica Checa, Praga | E154: Republica Checa, Praga | F154: 0.993292683 | G154: 598.2204513 | H154: 6.98220451
D155: 2012Republica Democratica Del Congo, Kinshasa | E155: Republica Democratica Del Congo, Kinshasa | F155: 0.959146341 | G155: 577.6554753 | H155: 6.77655475
D156: 2012Republica Dominicana, Santo Domingo | E156: Republica Dominicana, Santo Domingo | F156: 0.854268293 | G156: 514.4916221 | H156: 6.14491622
D157: 2012Rep. Centroafricana, Bangui | E157: Rep. Centroafricana, Bangui | F157: 1.073170732 | G157: 646.3278051 | H157: 7.46327805
D158: 2012Rumania, Bucarest | E158: Rumania, Bucarest | F158: 0.807317073 | G158: 486.2147804 | H158: 5.86214780
D159: 2012Ruanda, Kigali | E159: Ruanda, Kigali | F159: 0.910365854 | G159: 548.2769392 | H159: 6.48276939
D160: 2012Saint Kitts And Nevis, Basseterre | E160: Saint Kitts And Nevis, Basseterre | F160: 0.897560976 | G160: 540.5650734 | H160: 6.40565073
D161: 2012Samoa, Tuva | E161: Samoa, Tuva | F161: 0.956707317 | G161: 576.1865487 | H161: 6.76186549
D162: 2012San Vicente Y Granadinas, Kingstown | E162: San Vicente Y Granadinas, Kingstown | F162: 0.897560976 | G162: =(F162*$B$7) -> 540.5650734 | H162: 6.40565073
D163: 2012Santa Lucia, Castries | E163: Santa Lucia, Castries | F163: 0.788414634 | G163: 474.8305975 | H163: 5.74830597
D164: 2012Santo Tome Y Principe, Sao Tomé | E164: Santo Tome Y Principe, Sao Tomé | F164: 0.950609756 | G164: 572.5142316 | H164: 6.72514232
D165: 2012Senegal, Dakar | E165: Senegal, Dakar | F165: 0.920731707 | G165: 554.5198779 | H165: 6.54519878
D166: 2012Serbia, Belgrado | E166: Serbia, Belgrado | F166: 0.921341463 | G166: 554.8871095 | H166: 6.54887110
D167: 2012Seychelles, Victoria | E167: Seychelles, Victoria | F167: 0.82804878 | G167: 498.7006582 | H167: 5.98700658
D168: 2012Sierra Leona, Freetown | E168: Sierra Leona, Freetown | F168: 0.929878049 | G168: 560.0283538 | H168: 6.60028354
D169: 2012Singapur, Ciudad De Singapur | E169: Singapur, Ciudad De Singapur | F169: 1.114634146 | G169: 671.2995608 | H169: 7.71299561
D170: 2012Siria, Damasco | E170: Siria, Damasco | F170: 0.873170732 | G170: 525.8758051 | H170: 6.25875805
D171: 2012Somalia, Mogadishu | E171: Somalia, Mogadishu | F171: 0.838414634 | G171: 504.9435975 | H171: 6.04943597
D172: 2012Sri Lanka, Colombo | E172: Sri Lanka, Colombo | F172: 0.861585366 | G172: 518.8984025 | H172: 6.18898403
D173: 2012Sudafrica, Pretoria | E173: Sudafrica, Pretoria | F173: 0.87804878 | G173: 528.8136582 | H173: 6.28813658
D174: 2012Sudan, Jartum | E174: Sudan, Jartum | F174: 0.901829268 | G174: 543.1356949 | H174: 6.43135695
D175: 2012Suecia, Estocolmo | E175: Suecia, Estocolmo | F175: 0.978658537 | G175: 589.4068905 | H175: 6.89406890
D176: 2012Suiza, Berna | E176: Suiza, Berna | F176: 1.312804878 | G176: 790.6498658 | H176: 8.90649866
D177: 2012Suriname, Paramaribo | E177: Suriname, Paramaribo | F177: 0.81097561 | G177: 488.4181709 | H177: 5.88418171
D178: 2012Suazilandia, Mbabane | E178: Suazilandia, Mbabane | F178: 0.886585366 | G178: 533.9549025 | H178: 6.33954903
D179: 2012Tailandia, Bangkok | E179: Tailandia, Bangkok | F179: 0.895731707 | G179: 539.4633779 | H179: 6.39463378
D180: 2012Tanzania, Dar Es Salaam | E180: Tanzania, Dar Es Salaam | F180: 0.88597561 | G180: 533.5876709 | H180: 6.33587671
D181: 2012Tajikistan, Dushanbe | E181: Tajikistan, Dushanbe | F181: 0.87195122 | G181: 525.1413418 | H181: 6.25141342
D182: 2012Timor - Leste, Dili | E182: Timor - Leste, Dili | F182: 0.92804878 | G182: 558.9266582 | H182: 6.58926658
D183: 2012Togo, Lome | E183: Togo, Lome | F183: 0.929878049 | G183: 560.0283538 | H183: 6.60028354
D184: 2012Tonga, Nuku-Alofa | E184: Tonga, Nuku-Alofa | F184: 0.914634146 | G184: 550.8475608 | H184: 6.50847561
D185: 2012Trinidad Y Tobago, Puerto España | E185: Trinidad Y Tobago, Puerto España | F185: 0.897560976 | G185: 540.5650734 | H185: 6.40565073
D186: 2012Tunez, Tunis | E186: Tunez, Tunis | F186: 0.775 | G186: 466.7515 | H186: 5.66751500
D187: 2012Turkmenistan, Ashjabad | E187: Turkmenistan, Ashjabad | F187: 0.925609756 | G187: 557.4577316 | H187: 6.57457732
D188: 2012Turquia, Ankara | E188: Turquia, Ankara | F188: 0.873780488 | G188: 526.2430367 | H188: 6.26243037
D189: 2012Tuvalu, Funafuti | E189: Tuvalu, Funafuti | F189: 0.990853659 | G189: 596.7515247 | H189: 6.96751525
D190: 2012Ucrania, Kiev | E190: Ucrania, Kiev | F190: 0.878658537 | G190: 529.1808905 | H190: 6.29180890
D191: 2012Uganda, Kampala | E191: Uganda, Kampala | F191: 0.766463415 | G191: 461.6102563 | H191: 5.61610256
D192: 2012Uruguay, Montevideo | E192: Uruguay, Montevideo | F192: 0.912195122 | G192: 549.3786342 | H192: 6.49378634
D193: 2012Uzbekistan, Tashkent | E193: Uzbekistan, Tashkent | F193: 0.834756098 | G193: 502.7402076 | H193: 6.02740208
D194: 2012Vanuatu, Port Vila En Ejate | E194: Vanuatu, Port Vila En Ejate | F194: 1.131707317 | G194: =(F194*$B$7) -> 681.5820487 | H194: =(G194+100)/100 -> 7.81582049
D195: 2012Venezuela, Caracas | E195: Venezuela, Caracas | F195: 1.001219512 | G195: 602.9944633 | H195: 7.02994463
D196: 2012Vietnam, Hanoi | E196: Vietnam, Hanoi | F196: 0.806707317 | G196: 485.8475487 | H196: 5.85847549
D197: 2012Yemen, Aden | E197: Yemen, Aden | F197: 0.78597561 | G197: 473.3616709 | H197: 5.73361671
D198: 2012Zambia, Lusaka | E198: Zambia, Lusaka | F198: 0.906097561 | G198: 545.7063171 | H198: 6.45706317
D199: 2012Zimbabwe, Harare | E199: Zimbabwe, Harare | F199: 0.887804878 | G199: 534.6893658 | H199: =(G199+100)/100 -> 6.34689366
C200: 2013 | D200: 2013Afganistan, Kabul | E200: Afganistan, Kabul | F200: 0.9193548387 | G200: =(F200*$B$8) -> 565.61 | H200: 6.65605484
... 803 more rows
